fUST/lending_fUST_20251004
["ID","MTS","AMOUNT","RATE_DAILY","PERIOD"]
[388937632,1759525838426,-500.0,0.00020454,2]
[388937633,1759525838435,-500.0,0.00020454,2]
[388937634,1759525838445,-500.0,0.00020454,2]
[388937635,1759525838454,-500.0,0.00020454,2]
[388937636,1759525838463,-500.0,0.00020454,2]
[388937637,1759525838473,-500.0,0.00020454,2]
[388937638,1759525838483,-500.0,0.00020454,2]
[388937639,1759525838492,-500.0,0.00020454,2]
[388937640,1759525838501,-300.00000001,0.00020454,2]
[388937641,1759525838511,-500.0,0.00020454,2]
[388937642,1759525838524,-500.0,0.00020454,2]
[388937643,1759525838533,-500.0,0.00020454,2]
[388937644,1759525838543,-500.0,0.00020454,2]
[388937645,1759525838553,-500.0,0.00020454,2]
[388937646,1759525838562,-500.0,0.00020454,2]
[388937647,1759525838572,-500.0,0.00020454,2]
[388937648,1759525838582,-500.0,0.00020454,2]
[388937649,1759525838593,-500.0,0.00020454,2]
[388937650,1759525838603,-500.0,0.00020454,2]
[388937651,1759525838613,-500.0,0.00020454,2]
[388937652,1759525838623,-500.0,0.00020454,2]
[388937653,1759525838633,-500.0,0.00020454,2]
[388937654,1759525838643,-500.0,0.00020454,2]
[388937655,1759525838653,-500.0,0.00020454,2]
[388937656,1759525838663,-154.80109091,0.00020454,2]
[388937657,1759525838672,-500.0,0.00020454,2]
[388937658,1759525838682,-500.0,0.00020454,2]
[388937659,1759525838692,-500.0,0.00020454,2]
[388937660,1759525838702,-500.0,0.00020454,2]
[388937661,1759525838712,-500.0,0.00020454,2]
[388937662,1759525838722,-500.0,0.00020454,2]
[388937663,1759525838732,-500.0,0.00020454,2]
[388937664,1759525838742,-500.0,0.00020454,2]
[388937665,1759525838752,-644.43924755,0.00020454,2]
[388937666,1759525838761,-500.0,0.00020454,2]
[388937667,1759525838771,-500.0,0.00020454,2]
[388937668,1759525838781,-500.0,0.00020454,2]
[388937669,1759525838790,-500.0,0.00020454,2]
[388937670,1759525838800,-500.0,0.00020454,2]
[388937671,1759525838809,-500.0,0.00020454,2]
[388937672,1759525838819,-500.0,0.00020454,2]
[388937673,1759525838828,-500.0,0.00020454,2]
[388937674,1759525838838,-500.0,0.00020454,2]
[388937675,1759525838847,-500.0,0.00020454,2]
[388937676,1759525838857,-500.0,0.00020454,2]
[388937677,1759525838866,-500.0,0.00020454,2]
[388937678,1759525838876,-500.0,0.00020454,2]
[388937679,1759525838885,-500.0,0.00020454,2]
[388937680,1759525838895,-500.0,0.00020454,2]
[388937681,1759525838904,-500.0,0.00020454,2]
[388937682,1759525838915,-500.0,0.00020454,2]
[388937683,1759525838925,-500.0,0.00020454,2]
[388937684,1759525838935,-500.0,0.00020454,2]
[388937685,1759525838944,-500.0,0.00020454,2]
[388937686,1759525838955,-500.0,0.00020454,2]
[388937687,1759525838965,-500.0,0.00020455,2]
[388937688,1759525838975,-268.28,0.00020455,2]
[388937689,1759525838988,-200.0,0.00020455,10]
[388937690,1759525838998,-200.0,0.00020455,10]
[388937691,1759525839008,-200.0,0.00020455,10]
[388937692,1759525839018,-200.0,0.00020455,10]
[388937693,1759525839028,-207.921585,0.00020455,10]
[388937694,1759525839038,-50000.0,0.00020456,2]
[388937695,1759525839048,-500.0,0.00020473,2]
[388937696,1759525839058,-500.0,0.00020473,2]
[388937697,1759525839070,-500.0,0.00020473,2]
[388937698,1759525839081,-500.0,0.00020473,2]
[388937699,1759525839091,-502.78880425,0.00020473,2]
[388937700,1759525839101,-500.0,0.00020473,2]
[388937701,1759525839113,-500.0,0.00020473,2]
[388937702,1759525839123,-500.0,0.00020473,2]
[388937703,1759525839134,-500.0,0.00020473,2]
[388937704,1759525839145,-500.0,0.00020473,2]
[388937705,1759525839155,-584.98919306,0.00020473,2]
[388937706,1759525839165,-500.0,0.00020473,2]
[388937707,1759525839175,-500.0,0.00020473,2]
[388937708,1759525839185,-500.0,0.00020473,2]
[388937709,1759525839196,-500.0,0.00020473,2]
[388937710,1759525839206,-500.0,0.00020473,2]
[388937711,1759525839215,-500.0,0.00020473,2]
[388937712,1759525839226,-500.0,0.00020473,2]
[388937713,1759525839236,-500.0,0.00020473,2]
[388937714,1759525839245,-502.26452921,0.00020473,2]
[388937715,1759525839255,-511.18519808,0.00020473,2]
[388937717,1759525839265,-500.0,0.00020729,2]
[388937719,1759525839275,-268.28,0.00020729,2]
[388937720,1759525839285,-3689.21063525,0.0002077,2]
[388937722,1759525839294,-170.24390927,0.00020859,2]
[388937723,1759525839304,-300.0,0.0002087,2]
[388937724,1759525839314,-420.0,0.0002087,2]
[388937726,1759525839323,-420.0,0.0002087,2]
[388937727,1759525839332,-420.0,0.0002087,2]
[388937728,1759525839342,-420.0,0.0002087,2]
[388937729,1759525839352,-35880.3561288,0.00020872,2]
[388937730,1759525839362,-500.0,0.00020873,2]
[388937731,1759525839371,-500.0,0.00020873,2]
[388937732,1759525839381,-1680.0,0.00020972,2]
[388937733,1759525839391,-500.0,0.00021003,2]
[388937734,1759525839401,-268.28149864,0.00021003,2]
[388937735,1759525839410,-1000.0,0.00021021,2]
[388937736,1759525839420,-1000.0,0.00021021,2]
[388937737,1759525839430,-1000.0,0.00021021,2]
[388937738,1759525839440,-455.59347907,0.00021021,2]
[388937739,1759525839449,-1000.0,0.00021021,2]
[388937740,1759525839459,-1000.0,0.00021021,2]
[388937741,1759525839470,-1000.0,0.00021021,2]
[388937742,1759525839479,-1000.0,0.00021021,2]
[388937743,1759525839489,-1000.0,0.00021021,2]
[388937745,1759525839500,-500.0,0.00021021,2]
[388937746,1759525839510,-1000.0,0.00021021,2]
[388937747,1759525839521,-1000.0,0.00021021,2]
[388937748,1759525839530,-500.0,0.00021021,2]
[388937749,1759525839542,-500.0,0.00021277,2]
[388937751,1759525839552,-1680.0,0.00021286,2]
[388937753,1759525839561,-500.0,0.00021551,2]
[388937754,1759525839570,-500.0,0.00021568,2]
[388937756,1759525839580,-1296.33432936,0.00021568,2]
[388937758,1759525839590,-640.58795883,0.00021568,2]
[388937759,1759525839600,-1567.57004548,0.00021568,2]
[388937760,1759525839609,-1500.0,0.00021568,2]
[388937761,1759525839619,-1500.0,0.00021568,2]
[388937762,1759525839629,-1500.0,0.00021568,2]
[388937763,1759525839639,-1000.0,0.00021568,2]
[388937764,1759525839649,-1000.0,0.00021568,2]
[388937765,1759525839661,-441.42,0.00021573,2]
[388937767,1759525839671,-500.0,0.00021673,2]
[388937769,1759525839680,-3689.21063525,0.00021778,2]
[388937771,1759525839690,-500.0,0.00021825,2]
[388937773,1759525839699,-2000.0,0.00022116,2]
[388937775,1759525839708,-1500.0,0.00022116,2]
[388937777,1759525839718,-2000.0,0.00022116,2]
[388937779,1759525839728,-708.31,0.00022143,3]
[388937781,1759525839737,-354.15,0.00022143,3]
[388937783,1759525839747,-177.08,0.00022143,3]
[388937785,1759525839757,-531.24,0.00022143,3]
[388937787,1759525839766,-1416.61,0.00022144,3]
[388937789,1759525839776,-160.0,0.00022175,2]
[388937791,1759525839785,-2216.31,0.000222,2]
[388937793,1759525839795,-1000.0,0.00022221,2]
[388937795,1759525839805,-5345.49035707,0.0002244,2]
[388937797,1759525839815,-500.0,0.00022573,2]
[388937799,1759525839824,-407.23780233,0.00022573,2]
[388937801,1759525839835,-1000.0,0.00022664,2]
[388937803,1759525839844,-2500.0,0.00022664,2]
[388937805,1759525839854,-260.0,0.00022723,2]
[388937808,1759525839863,-180.0,0.00022745,2]
[388937811,1759525839873,-480.0,0.00022745,2]
[388937814,1759525839882,-587.0,0.00022745,2]
[388937817,1759525839891,-180.0,0.00022745,2]
[388937819,1759525839900,-422.286343,0.00022783,2]
[388937822,1759525839919,-3689.21063525,0.00022785,2]
[388937824,1759525839931,-1578.06806029,0.000229,2]
[388937826,1759525839940,-1920.0,0.00022966,2]
[388937828,1759525839950,-500.0,0.00022973,2]
[388937830,1759525839959,-1041.66666667,0.00023,2]
[388937832,1759525839968,-289.0,0.00023,7]
[388937834,1759525839977,-160.0,0.00023,2]
[388937836,1759525839987,-502.00263187,0.00023073,2]
[388937838,1759525839997,-1000.0,0.00023121,2]
[388937840,1759525840006,-1742.0,0.00023189,2]
[388937842,1759525840016,-331.74230019,0.00023212,2]
[388937844,1759525840026,-360.0,0.00023271,2]
[388937846,1759525840036,-204.87190892,0.00023404,2]
[388937848,1759525840046,-300.0,0.00023459,20]
[388937849,1759525840056,-300.0,0.00023459,20]
[388937850,1759525840066,-300.0,0.00023459,20]
[388937851,1759525840081,-300.0,0.00023459,20]
[388937852,1759525840091,-300.0,0.00023459,20]
[388937853,1759525840100,-300.0,0.00023459,20]
[388937854,1759525840111,-300.0,0.00023459,20]
[388937855,1759525840120,-300.0,0.00023459,20]
[388937856,1759525840130,-300.0,0.00023459,20]
[388937857,1759525840140,-300.0,0.00023459,20]
[388937858,1759525840151,-300.0,0.00023459,20]
[388937859,1759525840161,-300.0,0.00023459,20]
[388937860,1759525840170,-300.0,0.00023459,20]
[388937861,1759525840180,-300.0,0.00023459,20]
[388937862,1759525840190,-300.0,0.00023459,20]
[388937863,1759525840199,-1416.62,0.00023513,3]
[388937864,1759525840209,-708.3,0.00023513,3]
[388937865,1759525840218,-354.16,0.00023513,3]
[388937866,1759525840227,-2833.22,0.00023514,3]
[388937867,1759525840238,-500.0,0.00023521,2]
[388937868,1759525840247,-160.0,0.00023636,2]
[388937869,1759525840258,-160.0,0.00023636,2]
[388937870,1759525840268,-1500.0,0.00023668,2]
[388937871,1759525840278,-500.0,0.00023673,2]
[388937872,1759525840288,-500.0,0.00023673,2]
[388937873,1759525840297,-500.0,0.00023673,2]
[388937874,1759525840307,-500.0,0.00023673,2]
[388937875,1759525840317,-207.66792751,0.00023673,2]
[388937876,1759525840326,-500.0,0.00023673,2]
[388937877,1759525840336,-500.0,0.00023673,2]
[388937878,1759525840345,-500.0,0.00023673,2]
[388937879,1759525840355,-234.91692406,0.00023673,2]
[388937880,1759525840364,-500.0,0.00023673,2]
[388937881,1759525840374,-500.0,0.00023673,2]
[388937882,1759525840384,-500.0,0.00023673,2]
[388937883,1759525840393,-500.0,0.00023673,2]
[388937884,1759525840403,-500.0,0.00023673,2]
[388937885,1759525840412,-59943.7212426,0.00023686,2]
[388937887,1759525840422,-500.0,0.00023686,5]
[388937888,1759525840431,-3689.21063525,0.00023793,2]
[388937889,1759525840441,-357.85386434,0.000238,2]
[388937890,1759525840450,-440.0,0.00023819,2]
[388937892,1759525840462,-567.85,0.00023931,5]
[388937894,1759525840472,-151.0,0.00023931,7]
[388937896,1759525840481,-151.0,0.00023931,7]
[388937898,1759525840491,-151.0,0.00023931,7]
[388937900,1759525840503,-151.0,0.00023931,7]
[388937902,1759525840513,-151.0,0.00023931,7]
[388937904,1759525840522,-151.0,0.00023931,7]
[388937906,1759525840532,-151.0,0.00023931,7]
[388937908,1759525840542,-151.0,0.00023931,7]
[388937910,1759525840552,-238.673804,0.00023931,7]
[388937912,1759525840562,-500.0,0.0002396,5]
[388937915,1759525840572,-500.0,0.00023973,2]
[388937917,1759525840583,-150.0,0.00023973,2]
[388937919,1759525840593,-500.0,0.00023973,2]
[388937921,1759525840603,-500.0,0.00023973,2]
[388937923,1759525840613,-174.837654,0.00023973,7]
[388937925,1759525840622,-174.837654,0.00023973,7]
[388937927,1759525840632,-174.837654,0.00023973,7]
[388937946,1759525840643,-174.837654,0.00023973,7]
[388937947,1759525840835,-294.044666,0.0002399,7]
[388937948,1759525840846,-151.0,0.0002399,7]
[388937949,1759525840855,-151.0,0.0002399,7]
[388937950,1759525840865,-151.0,0.0002399,7]
[388937951,1759525840875,-153.200272,0.0002399,7]
[388937952,1759525840884,-151.0,0.0002399,7]
[388937953,1759525840893,-151.0,0.0002399,7]
[388937954,1759525840903,-151.0,0.0002399,7]
[388937955,1759525840912,-151.0,0.0002399,7]
[388937956,1759525840922,-151.0,0.0002399,7]
[388937957,1759525840931,-151.0,0.0002399,7]
[388937958,1759525840942,-151.0,0.0002399,7]
[388937959,1759525840951,-151.0,0.0002399,7]
[388937960,1759525840961,-151.0,0.0002399,7]
[388937961,1759525840971,-100000.0,0.0002399,2]
[388937962,1759525840981,-155.477105,0.00024122,7]
[388937963,1759525840990,-155.477105,0.00024122,7]
[388937964,1759525841000,-155.477105,0.00024122,7]
[388937965,1759525841009,-151.0,0.00024122,7]
[388937966,1759525841018,-155.477105,0.00024122,7]
[388937967,1759525841028,-151.0,0.00024122,7]
[388937968,1759525841038,-247.63404,0.00024122,7]
[388937969,1759525841048,-247.63404,0.00024122,7]
[388937970,1759525841058,-247.63404,0.00024122,7]
[388937971,1759525841068,-247.63404,0.00024122,7]
[388937972,1759525841081,-151.0,0.00024122,7]
[388937973,1759525841091,-151.0,0.00024122,7]
[388937974,1759525841100,-151.0,0.00024122,7]
[388937975,1759525841112,-151.0,0.00024122,7]
[388937976,1759525841122,-2216.31,0.000242,2]
[388937977,1759525841131,-2000.0,0.00024216,2]
[388937978,1759525841142,-1000.0,0.00024221,2]
[388937979,1759525841152,-500.0,0.00024221,2]
[388937980,1759525841161,-1000.0,0.00024221,2]
[388937981,1759525841170,-1000.0,0.00024221,2]
[388937982,1759525841179,-1000.0,0.00024221,2]
[388937983,1759525841189,-1000.0,0.00024221,2]
[388937984,1759525841198,-1000.0,0.00024221,2]
[388937985,1759525841207,-1000.0,0.00024221,2]
[388937986,1759525841217,-151.0,0.00024221,7]
[388937987,1759525841228,-151.0,0.00024221,7]
[388937988,1759525841239,-151.0,0.00024221,7]
[388937989,1759525841248,-151.0,0.00024221,7]
[388937990,1759525841257,-151.0,0.00024221,7]
[388937991,1759525841267,-500.0,0.00024234,5]
[388937992,1759525841276,-501.00043887,0.0002445,2]
[388937993,1759525841285,-500.0,0.0002445,2]
[388937994,1759525841294,-611.66,0.00024508,5]
[388937995,1759525841304,-159.72235773,0.00024521,2]
[388937996,1759525841313,-300.0,0.00024521,2]
[388937997,1759525841322,-660.19102542,0.00024521,2]
[388937998,1759525841332,-1008.08123487,0.00024521,2]
[388937999,1759525841341,-151.0,0.00024521,7]
[388938000,1759525841350,-151.0,0.00024521,7]
[388938001,1759525841360,-167.790874,0.00024521,7]
[388938002,1759525841369,-169.580575,0.00024521,7]
[388938003,1759525841379,-169.580575,0.00024521,7]
[388938004,1759525841388,-191.578652,0.00024521,7]
[388938005,1759525841398,-203.536083,0.00024521,7]
[388938006,1759525841407,-169.580575,0.00024521,7]
[388938007,1759525841416,-169.580575,0.00024521,7]
[388938008,1759525841426,-151.0,0.00024521,7]
[388938009,1759525841436,-151.0,0.00024521,7]
[388938010,1759525841446,-1041.66666667,0.00024521,7]
[388938011,1759525841455,-500.0,0.00024542,2]
[388938012,1759525841465,-300.0,0.00024673,2]
[388938013,1759525841474,-400.0,0.00024673,2]
[388938014,1759525841483,-500.0,0.00024764,2]
[388938015,1759525841493,-1500.0,0.00024768,2]
[388938016,1759525841503,-1500.0,0.00024768,2]
[388938017,1759525841513,-1000.0,0.00024768,2]
[388938018,1759525841523,-1500.0,0.00024768,2]
[388938019,1759525841533,-1500.0,0.00024768,2]
[388938020,1759525841543,-1500.0,0.00024768,2]
[388938021,1759525841552,-1500.0,0.00024768,2]
[388938022,1759525841563,-823.0,0.00024788,2]
[388938023,1759525841573,-3689.21063525,0.000248,2]
[388938024,1759525841582,-7825.57,0.000249,2]
[388938025,1759525841593,-205.011805,0.000249,7]
[388938026,1759525841603,-153.313215,0.000249,7]
[388938027,1759525841614,-151.0,0.000249,7]
[388938028,1759525841623,-230.0,0.000249,7]
[388938029,1759525841632,-151.0,0.000249,7]
[388938030,1759525841642,-151.0,0.000249,7]
[388938031,1759525841651,-151.0,0.000249,7]
[388938032,1759525841660,-151.0,0.000249,7]
[388938033,1759525841669,-151.0,0.000249,7]
[388938034,1759525841678,-234.04758945,0.000249,7]
[388938035,1759525841687,-151.0,0.000249,7]
[388938036,1759525841697,-190.071784,0.000249,7]
[388938037,1759525841706,-151.0,0.000249,7]
[388938038,1759525841715,-151.0,0.000249,7]
[388938039,1759525841725,-151.0,0.000249,7]
[388938040,1759525841734,-176.597648,0.000249,7]
[388938041,1759525841745,-151.0,0.000249,7]
[388938042,1759525841755,-151.0,0.000249,7]
[388938043,1759525841764,-151.0,0.000249,7]
[388938044,1759525841774,-270.33388,0.000249,7]
[388938045,1759525841784,-151.0,0.000249,7]
[388938046,1759525841793,-151.0,0.000249,7]
[388938047,1759525841802,-151.0,0.000249,7]
[388938048,1759525841811,-155.477105,0.000249,7]
[388938049,1759525841822,-155.477105,0.000249,7]
[388938050,1759525841831,-155.477105,0.000249,7]
[388938051,1759525841841,-151.0,0.000249,7]
[388938052,1759525841850,-155.477105,0.000249,7]
[388938053,1759525841859,-151.0,0.000249,7]
[388938054,1759525841869,-247.63404,0.000249,7]
[388938055,1759525841879,-247.63404,0.000249,7]
[388938056,1759525841889,-247.63404,0.000249,7]
[388938057,1759525841899,-247.63404,0.000249,7]
[388938058,1759525841909,-151.0,0.000249,7]
[388938059,1759525841919,-151.0,0.000249,7]
[388938060,1759525841930,-151.0,0.000249,7]
[388938061,1759525841940,-151.0,0.000249,7]
[388938062,1759525841949,-554452.723696,0.000249,2]
[388938063,1759525841959,-151.0,0.000249,7]
[388938064,1759525841969,-169.580575,0.000249,7]
[388938065,1759525841978,-169.580575,0.000249,7]
[388938066,1759525841987,-169.580575,0.000249,7]
[388938067,1759525841997,-169.580575,0.000249,7]
[388938068,1759525842006,-151.0,0.000249,7]
[388938069,1759525842016,-151.0,0.000249,7]
[388938070,1759525842025,-241.678982,0.000249,7]
[388938071,1759525842035,-151.1069088,0.000249,2]
[388938072,1759525842044,-151.0,0.000249,7]
[388938073,1759525842053,-151.0,0.000249,7]
[388938074,1759525842062,-855.368924,0.000249,7]
[388938075,1759525842076,-855.368924,0.000249,7]
[388938076,1759525842085,-151.0,0.000249,7]
[388938077,1759525842094,-151.0,0.000249,7]
[388938078,1759525842103,-151.0,0.000249,7]
[388938079,1759525842114,-855.368924,0.000249,7]
[388938080,1759525842124,-151.0,0.000249,7]
[388938081,1759525842134,-855.368924,0.000249,7]
[388938082,1759525842145,-855.368924,0.000249,7]
[388938083,1759525842156,-855.368924,0.000249,7]
[388938084,1759525842165,-855.368924,0.000249,7]
[388938085,1759525842174,-855.368924,0.000249,7]
[388938086,1759525842184,-156.154659,0.000249,7]
[388938087,1759525842194,-156.154659,0.000249,7]
[388938088,1759525842204,-156.154659,0.000249,7]
[388938089,1759525842213,-156.154659,0.000249,7]
[388938090,1759525842222,-156.154659,0.000249,7]
[388938091,1759525842232,-156.154659,0.000249,7]
[388938092,1759525842241,-156.154659,0.000249,7]
[388938093,1759525842251,-156.154659,0.000249,7]
[388938095,1759525842262,-174.837654,0.000249,7]
[388938097,1759525842271,-174.837654,0.000249,7]
[388938099,1759525842281,-174.837654,0.000249,7]
[388938100,1759525842290,-174.837654,0.000249,7]
[388938101,1759525842299,-59943.72124243,0.00024965,2]
[388938102,1759525842308,-500.0,0.00024973,2]
[388938103,1759525842318,-151.0,0.0002499,7]
[388938104,1759525842327,-169.580575,0.0002499,7]
[388938105,1759525842337,-169.580575,0.0002499,7]
[388938106,1759525842346,-169.580575,0.0002499,7]
[388938107,1759525842355,-169.580575,0.0002499,7]
[388938108,1759525842365,-151.0,0.0002499,7]
[388938109,1759525842374,-151.0,0.0002499,7]
[388938110,1759525842384,-855.368924,0.0002499,7]
[388938111,1759525842393,-151.0,0.0002499,7]
[388938112,1759525842403,-855.368924,0.0002499,7]
[388938113,1759525842412,-855.368924,0.0002499,7]
[388938114,1759525842421,-855.368924,0.0002499,7]
[388938115,1759525842430,-156.154659,0.0002499,7]
[388938116,1759525842439,-156.154659,0.0002499,7]
[388938117,1759525842449,-156.154659,0.0002499,7]
[388938118,1759525842459,-156.154659,0.0002499,7]
[388938119,1759525842469,-174.837654,0.0002499,7]
[388938120,1759525842479,-174.837654,0.0002499,7]
[388938121,1759525842488,-174.837654,0.0002499,7]
[388938122,1759525842497,-174.837654,0.0002499,7]
[388938123,1759525842506,-1000.0,0.00024998,2]
[388938124,1759525842516,-450.0,0.00025068,2]
[388938125,1759525842525,-199.40374989,0.0002514,5]
[388938126,1759525842534,-480.0,0.00025205,10]
[388938127,1759525842544,-600.0,0.00025221,2]
[388938128,1759525842553,-2000.0,0.00025316,2]
[388938129,1759525842563,-2000.0,0.00025316,2]
[388938130,1759525842572,-2000.0,0.00025316,2]
[388938131,1759525842581,-2000.0,0.00025316,2]
[388938133,1759525842590,-1787.12031426,0.00025316,2]
[388938135,1759525842599,-1000.0,0.00025521,2]
[388938136,1759525842608,-500.0,0.00025531,7]
[388938137,1759525842617,-1500.0,0.00025546,2]
[388938138,1759525842627,-600.0,0.00025616,2]
[388938139,1759525842636,-59943.72124243,0.00025655,3]
[388938140,1759525842645,-500.0,0.00025673,2]
[388938141,1759525842654,-900.0,0.00025768,2]
[388938142,1759525842663,-519.72529382,0.00025864,2]
[388938143,1759525842673,-2500.0,0.00025864,2]
[388938144,1759525842682,-2500.0,0.00025864,2]
[388938145,1759525842692,-151.0,0.00026,7]
[388938146,1759525842702,-151.0,0.00026,7]
[388938147,1759525842712,-151.0,0.00026,7]
[388938148,1759525842722,-151.0,0.00026,7]
[388938149,1759525842732,-151.0,0.00026,7]
[388938150,1759525842742,-151.0,0.00026,7]
[388938151,1759525842753,-2216.31,0.00026,2]
[388938152,1759525842763,-6064.8664761,0.00026025,7]
[388938153,1759525842772,-5000.0,0.00026025,7]
[388938154,1759525842783,-5000.0,0.00026025,9]
[388938155,1759525842794,-5000.0,0.00026025,8]
[388938156,1759525842803,-5000.0,0.00026025,3]
[388938157,1759525842812,-1041.66666667,0.00026025,3]
[388938158,1759525842822,-2000.0,0.00026094,2]
[388938159,1759525842831,-750.0,0.00026164,2]
[388938160,1759525842841,-1000.0,0.00026221,2]
[388938161,1759525842851,-1200.0,0.00026316,2]
[388938162,1759525842861,-1041.66666667,0.000264,3]
[388938163,1759525842872,-151.0,0.00026412,7]
[388938164,1759525842881,-174.837654,0.00026412,7]
[388938165,1759525842890,-174.837654,0.00026412,7]
[388938166,1759525842900,-174.837654,0.00026412,7]
[388938167,1759525842911,-2906.69679862,0.00026412,2]
[388938168,1759525842921,-3000.0,0.00026412,2]
[388938169,1759525842931,-1578.06806028,0.00026468,2]
[388938170,1759525842940,-151.0,0.00026468,7]
[388938171,1759525842949,-169.580575,0.00026468,7]
[388938172,1759525842958,-169.580575,0.00026468,7]
[388938173,1759525842967,-169.580575,0.00026468,7]
[388938174,1759525842976,-169.580575,0.00026468,7]
[388938175,1759525842986,-151.0,0.00026504,7]
[388938176,1759525842995,-151.0,0.00026504,7]
[388938177,1759525843004,-819.83144224,0.00026642,2]
[388938178,1759525843014,-223.1397124,0.00026712,2]
[388938179,1759525843023,-151.0,0.00026768,7]
[388938180,1759525843032,-151.0,0.00026768,7]
[388938181,1759525843041,-855.368924,0.00026768,7]
[388938182,1759525843050,-267.132731,0.00026768,7]
[388938183,1759525843059,-855.368924,0.00026768,7]
[388938184,1759525843070,-855.368924,0.00026768,7]
[388938185,1759525843081,-855.368924,0.00026768,7]
[388938186,1759525843090,-156.154659,0.00026768,7]
[388938187,1759525843099,-156.154659,0.00026768,7]
[388938188,1759525843108,-156.154659,0.00026768,7]
[388938189,1759525843123,-156.154659,0.00026768,7]
[388938190,1759525843132,-1500.0,0.00026768,2]
[388938191,1759525843142,-1041.66666667,0.000268,7]
[388938192,1759525843154,-1500.0,0.00026864,2]
[388938193,1759525843164,-3500.0,0.0002696,2]
[388938195,1759525843173,-151.0,0.00027009,7]
[388938196,1759525843248,-151.0,0.00027009,7]
[388938197,1759525843258,-5016.89943108,0.00027009,30]
[388938198,1759525843268,-613.0,0.00027015,2]
[388938199,1759525843278,-59943.72124243,0.00027034,6]
[388938200,1759525843289,-183.829,0.00027219,15]
[388938201,1759525843298,-157.18,0.00027272,2]
[388938202,1759525843309,-2000.0,0.00027316,2]
[388938203,1759525843318,-2100.0,0.00027329,2]
[388938204,1759525843328,-189.028,0.000274,4]
[388938205,1759525843337,-189.028,0.000274,4]
[388938206,1759525843346,-189.02,0.000274,4]
[388938207,1759525843355,-165.3995,0.000274,4]
[388938208,1759525843365,-165.3995,0.000274,4]
[388938209,1759525843374,-165.3995,0.000274,4]
[388938210,1759525843383,-165.3995,0.000274,4]
[388938211,1759525843392,-1800.0,0.00027412,5]
[388938212,1759525843401,-165.3995,0.00027466,4]
[388938213,1759525843412,-182.0,0.00027479,7]
[388938214,1759525843422,-179.0,0.00027487,2]
[388938215,1759525843431,-4000.0,0.00027508,5]
[388938216,1759525843442,-179.0,0.00027561,2]
[388938217,1759525843451,-182.0,0.00027611,2]
[388938218,1759525843460,-2216.31,0.000277,2]
[388938219,1759525843470,-179.0,0.00027773,2]
[388938220,1759525843479,-1944.69863306,0.00027864,5]
[388938221,1759525843488,-2100.0,0.0002796,5]
[388938222,1759525843498,-1041.66666667,0.00028,30]
[388938223,1759525843507,-4500.0,0.00028056,5]
[388938224,1759525843516,-899.0,0.00028094,7]
[388938225,1759525843525,-165.3995,0.00028208,4]
[388938226,1759525843534,-179.0,0.0002824,2]
[388938227,1759525843543,-630.0,0.00028265,2]
[388938228,1759525843555,-2157.0,0.00028265,2]